[Event "32nd Panamerican Youth 2022"]
[Site "Montevideo"]
[Date "2022.06.26"]
[Round "1.20"]
[White "Salazar Hernandez, Benjamin"]
[Black "Sloan, Jed"]
[Result "0-1"]
[ECO "A45"]
[WhiteElo "1357"]
[BlackElo "1974"]
[Annotator "RC"]
[PlyCount "84"]
[EventDate "2022.06.26"]
[EventType "swiss"]
[EventCountry "URU"]
[SourceTitle "playchess.com"]
[Source "ChessBase"]
[SourceQuality "1"]
[TimeControl "5400+30"]

1. d4 {[%emt 0:00:01]} Nf6 {[%emt 0:00:05]} 2. Bf4 {[%emt 0:00:06]} d5 {[%emt 0:00:27]} 3. e3 {[%emt 0:00:08]} e6 {[%emt 0:00:29]} 4. Nf3 {[%emt 0:00:42]} Bd6 {[%emt 0:00:12]} 5. Bg3 {[%emt 0:00:37]} O-O {[%emt 0:00:40]} 6. Be2 {[%emt 0:00:15]} c5 {[%emt 0:01:10]} 7. c4 {[%emt 0:02:31]} dxc4 {[%emt 0:12:08]} 8. Bxc4 {[%emt 0:00:08]} a6 9. dxc5 {[%emt 0:23:35]} Bxc5 {[%emt 0:02:57]} 10. O-O {[%emt 0:00:41]} b5 {[%emt 0:06:00]} 11. Bb3 {[%emt 0:00:26]} Qb6 {[%emt 0:07:31]} 12. Nc3 {[%emt 0:02:22]} Bb7 {[%emt 0:01:18]} 13. a4 {[%emt 0:02:20]} Nbd7 {[%emt 0:12:18]} 14. a5 {[%emt 0:02:41]} Qd8 {[%emt 0:04:24]} 15. Bd6 {[%emt 0:11:18]} Bxd6 {[%emt 0:06:23]} 16. Qxd6 {[%emt 0:00:06]} Bxf3 {[%emt 0:02:24]} 17. gxf3 {[%emt 0:00:14]} Qc8 {[%emt 0:01:46]} 18. Rac1 {[%emt 0:01:24]} Qb7 {[%emt 0:02:06]} 19. e4 {[%emt 0:04:56]} Rac8 {[%emt 0:05:22]} 20. e5 {[%emt 0:17:33]} Nh5 {[%emt 0:18:17]} 21. Ne4 {[%emt 0:01:25]} Nf4 {[%emt 0:02:15]} 22. Qd2 {[%emt 0:01:35]} Rxc1 {[%emt 0:00:29]} 23. Rxc1 {[%emt 0:00:33]} Ng6 {[%emt 0:00:53]} 24. Ng5 {[%emt 0:06:34]} Ndxe5 {[%emt 0:00:50]} 25. f4 {[%emt 0:02:11]} Nf3+ {[%emt 0:00:48]} 26. Nxf3 {[%emt 0:00:08]} Qxf3 {[%emt 0:00:08]} 27. Rc3 {[%emt 0:04:03]} Qg4+ {[%emt 0:02:27]} 28. Kh1 {[%emt 0:01:32]} Qxf4 {[%emt 0:04:19]} 29. Qd7 {[%emt 0:07:33]} Qxf2 {[%emt 0:00:55]} 30. Qd1 {[%emt 0:01:56]} Qxb2 {[%emt 0:01:21]} 31. Rg3 {[%emt 0:01:20]} Rc8 {[%emt 0:00:50]} 32. Qd7 {[%emt 0:02:39]} Qc1+ {[%emt 0:01:31]} 33. Kg2 {[%emt 0:01:30]} Qc6+ {[%emt 0:00:36]} 34. Qxc6 {[%emt 0:00:17]} Rxc6 {[%emt 0:00:01]} 35. Kf2 {[%emt 0:00:28]} Kf8 {[%emt 0:00:25]} 36. Rd3 {[%emt 0:00:27]} Ke7 {[%emt 0:00:01]} 37. Ke3 {[%emt 0:00:34]} Ne5 {[%emt 0:00:09]} 38. Rd4 {[%emt 0:01:13]} Rc3+ {[%emt 0:00:28]} 39. Ke4 {[%emt 0:00:02]} Nc6 {[%emt 0:00:26]} 40. Rd3 {[%emt 0:01:03]} Rxd3 {[%emt 0:00:05]} 41. Kxd3 {[%emt 0:00:08]} Nxa5 {[%emt 0:00:03]} 42. Ba2 {[%emt 0:00:23]} Nc6 {[%emt 0:00:06]} 0-1

[Event "32nd Panamerican Youth 2022"]
[Site "Montevideo"]
[Date "2022.06.26"]
[Round "1.25"]
[White "Fiorito, Joaquin"]
[Black "Kulik, Nicolas"]
[Result "1-0"]
[ECO "D00"]
[WhiteElo "2258"]
[BlackElo "1781"]
[Annotator "TA"]
[PlyCount "65"]
[EventDate "2022.06.26"]
[EventType "swiss"]
[EventCountry "URU"]
[SourceTitle "playchess.com"]
[Source "ChessBase"]
[SourceQuality "1"]
[TimeControl "5400+30"]

{[%evp 9,65,0,0,0,0,0,0,-5,0,-5,0,0,0,0,0,0,0,-129,0,0,0,0,0,-165,0,-12,0,0,12,-74,225,144,303,285,164,153,402,418,703,669,711,712,700,479,472,433,1033,972,1681,1464,1253,941,898,840,29980,29981,29994,29993]} 1. d4 {[%emt 0:00:33]} d5 {[%emt 0:00:05]} 2. Bf4 {[%emt 0:00:19]} Nf6 {[%emt 0:00:09]} 3. Nc3 {[%emt 0:00:24]} a6 {[%emt 0:00:18]} 4. e3 {[%emt 0:00:08]} e6 {[%emt 0:00:05]} 5. g4 {[%emt 0:00:29]} Bb4 {[%emt 0:00:20]} 6. Nge2 {[%emt 0:00:10] D00: 1 d4 d5: Unusual lines.} O-O {[%emt 0:00:27]} 7. a3 {[%emt 0:00:06]} Be7 {[%emt 0:00:04]} 8. g5 {[%emt 0:00:51] The position is equal.} Nh5 {[%emt 0:00:25]} 9. h4 {[%emt 0:00:44]} Nxf4 {[%emt 0:00:05]} 10. Nxf4 {[%emt 0:00:11]} c5 {[%emt 0:00:28]} 11. Bd3 {[%emt 0:00:53]} c4 {[%emt 0:00:26]} 12. Bxh7+ {[%emt 0:03:06]} Kxh7 {[%emt 0:00:06]} 13. Qh5+ {[%emt 0:00:06]} Kg8 {[%emt 0:00:03]} 14. g6 {[%emt 0:00:06]} fxg6 {[%emt 0:00:04]} 15. Nxg6 {[%emt 0:00:08]} Rf5 {[%emt 0:00:25]} 16. Qh8+ {[%emt 0:00:06]} Kf7 {[%emt 0:00:05]} 17. Qh7 {[%emt 0:00:04]} Bf6 {[%emt 0:04:11] [#]} 18. Nh8+ $146 {[%emt 0:04:12]} ({Predecessor:} 18. e4 dxe4 19. Nh8+ Ke7 20. O-O-O Nd7 21. Nxe4 Nf8 22. Qg8 Qe8 23. h5 Nd7 24. Ng6+ {0-1 (51) Firouzja,A (2759)-So,W (2770) chess24.com INT 2021}) 18... Ke7 19. h5 {[%emt 0:02:08]} (19. e4 $11 dxe4 20. O-O-O) 19... Kd7 $2 {[%emt 0:18:12][%mdl 8192]} (19... Nd7 $17 {aiming for ...b5.} 20. e4 dxe4) 20. h6 $1 $18 {[%emt 0:01:05][%mdl 1024] White has strong compensation.} Qe7 $2 {[%emt 0:01:41]} (20... Nc6 $16) 21. Ng6 {[%emt 0:06:35]} Qf7 {[%emt 0:00:57]} 22. O-O-O $1 {[%emt 0:10:32] Hoping for Rdg1.} Nc6 $2 {[%emt 0:22:22] [#] This move loses the game for Black.} (22... Rxf2 $2 23. Rdf1 Rf5 24. Rxf5 exf5 25. Nxd5 $1 {[%mdl 512]} Qxd5 26. hxg7 Qxh1+ 27. Qxh1 Bxg7 28. Qh7 $18) (22... Kc6 $16 {was worth a try.}) 23. Rdg1 $1 {[%emt 0:00:50] And now Nh8 would win.} Kd6 {[%emt 0:05:27]} (23... Rxf2 $2 24. hxg7 Bxg7 25. Nf4 $18) (23... Ne7 $142 24. Nxe7 (24. hxg7 Ng8 $16) 24... Kxe7) 24. Nh8 $1 {[%emt 0:01:58][%csl LRf7,LRg7] Pair of Knights!} Qc7 {[%emt 0:04:31]} 25. hxg7 {[%emt 0:00:11]} Ne7 {[%emt 0:01:05]} 26. g8=Q {[%emt 0:04:31]} Nxg8 {[%emt 0:00:08]} 27. Qxg8 {[%emt 0:00:19]} Bxh8 {[%emt 0:00:58]} (27... Kc6 $142 28. Rh7 Qd8 29. Qxd8 Bxd8) 28. Rxh8 {[%emt 0:00:15] Strongly threatening Rg7.} Rf7 {[%emt 0:01:41] Inhibits Rg7.} 29. e4 {[%emt 0:01:01] Intending exd5 and mate.} dxe4 {[%emt 0:01:16]} 30. Nxe4+ {[%emt 0:01:23]} Kc6 {[%emt 0:00:17]} 31. d5+ {[%emt 0:00:54]} Kxd5 {[%emt 0:00:54]} 32. Rd1+ {[%emt 0:02:44]} Kxe4 {[%emt 0:00:47]} 33. Qg2+ {[%emt 0:00:17] Weighted Error Value: White=0.16 (very precise) /Black=1.00} 1-0

[Event "32nd Panamerican Youth 2022"]
[Site "Montevideo"]
[Date "2022.06.26"]
[Round "1.26"]
[White "Rodriguez Buela, Martin"]
[Black "Flores Quillas, Diego Saul Rodri"]
[Result "0-1"]
[ECO "A04"]
[WhiteElo "1712"]
[BlackElo "2193"]
[Annotator "RC"]
[PlyCount "40"]
[EventDate "2022.06.26"]
[EventType "swiss"]
[EventCountry "URU"]
[SourceTitle "playchess.com"]
[Source "ChessBase"]
[SourceQuality "1"]
[TimeControl "5400+30"]

1. Nf3 {[%emt 0:00:03]} c5 {[%emt 0:08:05]} 2. g3 {[%emt 0:00:18]} Nc6 {[%emt 0:00:14]} 3. d4 {[%emt 0:04:43]} cxd4 {[%emt 0:00:13]} 4. Nxd4 {[%emt 0:00:05]} g6 {[%emt 0:00:09]} 5. c4 {[%emt 0:03:25]} Bg7 {[%emt 0:00:15]} 6. Nb3 {[%emt 0:00:12]} Nf6 7. Bg2 {[%emt 0:01:28]} O-O {[%emt 0:08:14]} 8. O-O {[%emt 0:02:01]} d6 {[%emt 0:00:19]} 9. Nc3 Na5 10. Nxa5 {[%emt 0:21:25]} Qxa5 {[%emt 0:04:59]} 11. Nd5 {[%emt 0:00:04]} Nxd5 {[%emt 0:00:37]} 12. Qxd5 {[%emt 0:04:37]} Qc7 {[%emt 0:09:03]} 13. Rb1 {[%emt 0:08:37]} Bf5 {[%emt 0:15:42]} 14. Be4 {[%emt 0:00:14]} Be6 {[%emt 0:07:04]} 15. Qxb7 {[%emt 0:00:06]} Qxc4 {[%emt 0:00:08]} 16. Bd3 {[%emt 0:06:21]} Qxa2 {[%emt 0:01:28]} 17. Qxe7 {[%emt 0:01:54]} Rad8 {[%emt 0:19:02]} 18. Be3 {[%emt 0:08:36]} a5 {[%emt 0:04:16]} 19. Qh4 {[%emt 0:14:11]} Rb8 20. Bd4 {[%emt 0:00:30]} Rb5 0-1

[Event "32nd Panamerican Youth 2022"]
[Site "Montevideo"]
[Date "2022.06.26"]
[Round "1.27"]
[White "Melian, Juan Sebastian"]
[Black "Caceres Salas, Elias"]
[Result "1-0"]
[ECO "C28"]
[WhiteElo "2069"]
[BlackElo "1715"]
[Annotator "RC"]
[PlyCount "73"]
[EventDate "2022.06.26"]
[EventType "swiss"]
[EventCountry "URU"]
[SourceTitle "playchess.com"]
[Source "ChessBase"]
[SourceQuality "1"]
[TimeControl "5400+30"]

1. e4 {[%emt 0:00:04]} e5 {[%emt 0:00:27]} 2. Bc4 {[%emt 0:01:32]} Nc6 {[%emt 0:00:45]} 3. Nc3 {[%emt 0:03:52]} Nf6 {[%emt 0:01:13]} 4. d3 {[%emt 0:00:53]} Be7 {[%emt 0:00:49]} 5. Nge2 {[%emt 0:02:47]} d6 {[%emt 0:01:04]} 6. O-O {[%emt 0:00:13]} O-O {[%emt 0:01:17]} 7. f4 {[%emt 0:01:05]} Na5 8. Bb3 {[%emt 0:05:54]} c6 {[%emt 0:09:28]} 9. h3 {[%emt 0:03:20]} Re8 {[%emt 0:04:14]} 10. fxe5 {[%emt 0:06:55]} dxe5 {[%emt 0:01:02]} 11. Be3 {[%emt 0:00:37]} Nxb3 {[%emt 0:08:28]} 12. axb3 {[%emt 0:00:08]} Be6 {[%emt 0:02:09]} 13. Ng3 {[%emt 0:05:47]} g6 {[%emt 0:10:02]} 14. Qd2 {[%emt 0:03:43]} b6 {[%emt 0:12:32]} 15. Rf3 {[%emt 0:07:20]} h5 {[%emt 0:19:58]} 16. Bh6 {[%emt 0:03:06]} Bc5+ {[%emt 0:16:04]} 17. Kh1 {[%emt 0:03:15]} Ng4 {[%emt 0:00:11]} 18. Bg5 {[%emt 0:03:17]} f6 {[%emt 0:00:09]} 19. Bh4 {[%emt 0:08:08]} Be7 {[%emt 0:08:47]} 20. Raf1 {[%emt 0:04:34]} Kg7 {[%emt 0:01:01]} 21. hxg4 {[%emt 0:04:19]} hxg4 {[%emt 0:00:01]} 22. Bxf6+ {[%emt 0:00:55]} Bxf6 {[%emt 0:00:01]} 23. Rxf6 {[%emt 0:00:02]} Qxf6 {[%emt 0:01:45]} 24. Rxf6 {[%emt 0:00:01]} Rh8+ {[%emt 0:00:25]} 25. Kg1 {[%emt 0:00:22]} Kxf6 {[%emt 0:00:01]} 26. d4 {[%emt 0:00:28]} exd4 {[%emt 0:01:02]} 27. Qxd4+ {[%emt 0:00:02]} Kf7 {[%emt 0:00:07]} 28. e5 {[%emt 0:01:07]} Kg7 {[%emt 0:00:56]} 29. Nce4 {[%emt 0:03:14]} Rad8 {[%emt 0:00:18]} 30. Nd6 {[%emt 0:00:11]} Rhf8 {[%emt 0:00:38]} 31. Qd2 {[%emt 0:01:38]} Kh7 {[%emt 0:00:34]} 32. Qg5 {[%emt 0:00:51]} Rd7 {[%emt 0:00:30]} 33. Nge4 {[%emt 0:00:11]} Kg7 {[%emt 0:00:29]} 34. Nf6 {[%emt 0:00:13]} Rxd6 {[%emt 0:00:30]} 35. Nh5+ {[%emt 0:00:32]} Kh7 {[%emt 0:00:21]} 36. exd6 {[%emt 0:00:36]} gxh5 {[%emt 0:00:27]} 37. Qe7+ {[%emt 0:00:11]} 1-0

[Event "32nd Panamerican Youth 2022"]
[Site "Montevideo"]
[Date "2022.06.26"]
[Round "1.28"]
[White "Lavandeira, Juan Bautista"]
[Black "Montes Orozco, Miguel Angel"]
[Result "1/2-1/2"]
[ECO "B13"]
[WhiteElo "1662"]
[BlackElo "2166"]
[Annotator "RC"]
[PlyCount "57"]
[EventDate "2022.06.26"]
[EventType "swiss"]
[EventCountry "URU"]
[SourceTitle "playchess.com"]
[Source "ChessBase"]
[SourceQuality "1"]
[TimeControl "5400+30"]

1. d4 {[%emt 0:00:04]} Nf6 {[%emt 0:00:10]} 2. c4 {[%emt 0:00:06]} c5 {[%emt 0:00:33]} 3. e3 {[%emt 0:00:55]} cxd4 4. exd4 {[%emt 0:00:34]} d5 {[%emt 0:04:54]} 5. Nc3 {[%emt 0:02:02]} Nc6 {[%emt 0:00:13]} 6. cxd5 {[%emt 0:08:35]} Nxd5 {[%emt 0:00:31]} 7. Bc4 Be6 {[%emt 0:10:01]} 8. Bb3 {[%emt 0:19:42]} a6 {[%emt 0:08:31]} 9. Nf3 {[%emt 0:13:05]} Na5 {[%emt 0:00:52]} 10. Ng5 {[%emt 0:09:28]} Nxc3 {[%emt 0:08:08]} 11. bxc3 {[%emt 0:18:43]} Bxb3 {[%emt 0:13:31]} 12. axb3 {[%emt 0:03:29]} Qd5 13. Rxa5 {[%emt 0:00:23]} Qxa5 {[%emt 0:02:38]} 14. Qf3 {[%emt 0:03:17]} f6 {[%emt 0:00:53]} 15. Ne6 {[%emt 0:06:52]} Rc8 {[%emt 0:10:06]} 16. Bd2 {[%emt 0:04:55]} Kf7 17. Qxb7 Re8 {[%emt 0:20:47]} 18. Nc7 {[%emt 0:04:20]} Rd8 {[%emt 0:03:44]} 19. Qc6 {[%emt 0:01:29]} Rd6 {[%emt 0:00:59]} 20. Qc4+ {[%emt 0:00:57]} e6 {[%emt 0:01:29]} 21. Bf4 Qa1+ {[%emt 0:10:56]} 22. Ke2 {[%emt 0:00:42]} Qa2+ {[%emt 0:00:47]} 23. Kf3 {[%emt 0:01:06]} Rb6 {[%emt 0:00:13]} 24. d5 g5 {[%emt 0:01:36]} 25. dxe6+ {[%emt 0:00:59]} Kg7 {[%emt 0:00:36]} 26. Ne8+ {[%emt 0:00:32]} Kh6 {[%emt 0:00:15]} 27. h4 {[%emt 0:00:18]} Qxb3 {[%emt 0:00:29]} 28. Bxg5+ {[%emt 0:00:46]} Kg6 {[%emt 0:00:19]} 29. h5+ {[%emt 0:00:14]} 1/2-1/2

[Event "32nd Panamerican Youth 2022"]
[Site "Montevideo"]
[Date "2022.06.26"]
[Round "1.29"]
[White "Borda Rodas, Anapaola S."]
[Black "Ibarra Mayorga, Ximena"]
[Result "1-0"]
[ECO "C19"]
[WhiteElo "2141"]
[BlackElo "1686"]
[Annotator "RC"]
[PlyCount "71"]
[EventDate "2022.06.26"]
[EventType "swiss"]
[EventCountry "URU"]
[SourceTitle "playchess.com"]
[Source "ChessBase"]
[SourceQuality "1"]
[TimeControl "5400+30"]

1. e4 {[%emt 0:00:04]} e6 {[%emt 0:00:11]} 2. d4 {[%emt 0:00:26]} d5 {[%emt 0:00:07]} 3. Nc3 {[%emt 0:00:27]} Bb4 {[%emt 0:01:02]} 4. e5 {[%emt 0:00:38]} c5 {[%emt 0:00:10]} 5. a3 {[%emt 0:00:04]} Bxc3+ {[%emt 0:00:08]} 6. bxc3 {[%emt 0:00:06]} Ne7 {[%emt 0:00:17]} 7. Nf3 {[%emt 0:01:52]} Nbc6 {[%emt 0:01:24]} 8. Bd3 {[%emt 0:04:16]} Qa5 {[%emt 0:00:39]} 9. Bd2 {[%emt 0:00:28]} c4 {[%emt 0:00:06]} 10. Be2 {[%emt 0:00:06]} Bd7 {[%emt 0:01:01]} 11. O-O {[%emt 0:04:08]} f6 12. exf6 {[%emt 0:12:13]} gxf6 {[%emt 0:02:51]} 13. Nh4 {[%emt 0:00:13]} O-O-O {[%emt 0:01:01]} 14. f4 {[%emt 0:03:25]} Rhg8 {[%emt 0:26:37]} 15. f5 {[%emt 0:12:18]} e5 {[%emt 0:00:22]} 16. Bh5 {[%emt 0:01:31]} Be8 {[%emt 0:09:35]} 17. Be2 {[%emt 0:09:05]} Kb8 {[%emt 0:10:00]} 18. Nf3 {[%emt 0:17:06]} Qb6 {[%emt 0:21:06]} 19. Rb1 {[%emt 0:02:05]} Qa5 {[%emt 0:06:10]} 20. dxe5 {[%emt 0:02:50]} Nxf5 {[%emt 0:05:55]} 21. exf6 {[%emt 0:00:26]} Qc5+ {[%emt 0:03:00]} 22. Rf2 {[%emt 0:10:29]} Rg6 {[%emt 0:03:19]} 23. Bf4+ {[%emt 0:09:44]} Ka8 {[%emt 0:01:51]} 24. Nd4 {[%emt 0:02:16]} Nfxd4 {[%emt 0:02:31]} 25. cxd4 {[%emt 0:00:21]} Nxd4 {[%emt 0:02:13]} 26. Bh5 {[%emt 0:02:57]} Rxf6 {[%emt 0:00:39]} 27. Be3 {[%emt 0:00:34]} Bxh5 {[%emt 0:01:02]} 28. Qxh5 {[%emt 0:00:10]} Rg6 {[%emt 0:00:41]} 29. Qh4 {[%emt 0:00:37]} Nf3+ {[%emt 0:00:24]} 30. Rxf3 {[%emt 0:00:05]} Qc8 {[%emt 0:00:15]} 31. Qd4 {[%emt 0:00:55]} b6 {[%emt 0:00:12]} 32. Rf7 {[%emt 0:00:27]} Rdg8 {[%emt 0:00:58]} 33. Qxd5+ {[%emt 0:00:21]} Rc6 {[%emt 0:00:24]} 34. Bxb6 {[%emt 0:00:53]} axb6 {[%emt 0:00:46]} 35. Rxb6 {[%emt 0:00:06]} Rxg2+ {[%emt 0:00:26]} 36. Qxg2 {[%emt 0:00:12]} 1-0

[Event "32nd Panamerican Youth 2022"]
[Site "Montevideo"]
[Date "2022.06.26"]
[Round "1.30"]
[White "Guo, Hazel"]
[Black "Garcia Andrada, Heidy Nicole"]
[Result "0-1"]
[ECO "B30"]
[WhiteElo "1526"]
[BlackElo "1918"]
[Annotator "RC"]
[PlyCount "130"]
[EventDate "2022.06.26"]
[EventType "swiss"]
[EventCountry "URU"]
[SourceTitle "playchess.com"]
[Source "ChessBase"]
[SourceQuality "1"]
[TimeControl "5400+30"]

1. e4 {[%emt 0:00:02]} c5 {[%emt 0:15:04]} 2. Nf3 {[%emt 0:00:03]} Nc6 {[%emt 0:00:06]} 3. Bb5 {[%emt 0:00:06]} Qb6 {[%emt 0:00:07]} 4. Bxc6 {[%emt 0:00:52]} Qxc6 {[%emt 0:00:07]} 5. Nc3 {[%emt 0:00:19]} e6 {[%emt 0:00:09]} 6. d4 {[%emt 0:02:44]} cxd4 {[%emt 0:00:16]} 7. Nxd4 {[%emt 0:00:02]} Qc7 {[%emt 0:00:18]} 8. Ndb5 {[%emt 0:02:30]} Qb8 9. O-O {[%emt 0:01:42]} a6 {[%emt 0:01:26]} 10. Nd4 {[%emt 0:01:40]} b5 {[%emt 0:03:09]} 11. Be3 {[%emt 0:04:15]} Bb7 {[%emt 0:00:46]} 12. f4 {[%emt 0:02:11]} b4 {[%emt 0:01:47]} 13. Na4 {[%emt 0:04:56]} Bxe4 {[%emt 0:00:36]} 14. Nb3 {[%emt 0:02:10]} Qc7 {[%emt 0:00:19]} 15. Nac5 {[%emt 0:07:09]} Bd5 {[%emt 0:08:20]} 16. Qd2 {[%emt 0:07:35]} a5 {[%emt 0:01:09]} 17. Nd3 {[%emt 0:04:18]} Nf6 {[%emt 0:00:39]} 18. Bd4 {[%emt 0:04:15]} Be7 {[%emt 0:00:42]} 19. Rae1 {[%emt 0:02:34]} d6 {[%emt 0:06:24]} 20. Nbc1 {[%emt 0:02:33]} O-O {[%emt 0:06:59]} 21. Re3 {[%emt 0:11:53]} Rac8 {[%emt 0:01:08]} 22. Re2 {[%emt 0:06:24]} Qc4 {[%emt 0:05:06]} 23. Be3 {[%emt 0:03:26]} Ng4 {[%emt 0:10:39]} 24. h3 {[%emt 0:01:51]} Nxe3 {[%emt 0:00:09]} 25. Qxe3 {[%emt 0:00:25]} Bf6 {[%emt 0:00:18]} 26. Kh2 {[%emt 0:01:09]} Bxb2 {[%emt 0:01:27]} 27. Nxb2 {[%emt 0:02:40]} Qc3 {[%emt 0:03:19]} 28. Qxc3 {[%emt 0:02:10]} Rxc3 {[%emt 0:00:03]} 29. Nb3 {[%emt 0:02:44]} Ra8 {[%emt 0:01:05]} 30. Na4 {[%emt 0:00:22]} Rc6 {[%emt 0:05:03]} 31. Rd2 {[%emt 0:01:46]} Rac8 {[%emt 0:03:39]} 32. Rff2 {[%emt 0:00:26]} Be4 {[%emt 0:00:19]} 33. Nd4 {[%emt 0:00:51]} Ra6 {[%emt 0:00:42]} 34. Nb5 {[%emt 0:02:15]} Bd5 {[%emt 0:07:53]} 35. c3 {[%emt 0:01:57]} Kf8 {[%emt 0:00:11]} 36. cxb4 {[%emt 0:02:53]} axb4 {[%emt 0:00:07]} 37. Nb2 {[%emt 0:01:20]} Rc5 {[%emt 0:04:48]} 38. Nd4 {[%emt 0:02:16]} Rxa2 {[%emt 0:00:08]} 39. Nd3 {[%emt 0:01:31]} Rxd2 {[%emt 0:00:08]} 40. Rxd2 {[%emt 0:00:03]} Rc4 {[%emt 0:00:11]} 41. Nc2 {[%emt 0:00:36]} b3 {[%emt 0:01:29]} 42. Ne3 {[%emt 0:00:07]} Rd4 {[%emt 0:02:54]} 43. Nxd5 {[%emt 0:00:22]} Rxd5 {[%emt 0:00:28]} 44. Rd1 {[%emt 0:00:03]} e5 {[%emt 0:01:37]} 45. fxe5 {[%emt 0:00:06]} dxe5 {[%emt 0:00:05]} 46. Nb2 {[%emt 0:00:04]} Rxd1 {[%emt 0:00:23]} 47. Nxd1 {[%emt 0:00:04]} f5 {[%emt 0:01:11]} 48. Kg3 {[%emt 0:00:14]} Kf7 {[%emt 0:01:19]} 49. Kf3 {[%emt 0:00:35]} Ke6 {[%emt 0:00:25]} 50. Ke3 {[%emt 0:02:55]} Kd5 {[%emt 0:02:05]} 51. Kd3 {[%emt 0:00:21]} g6 {[%emt 0:02:39]} 52. Ne3+ {[%emt 0:01:14]} Kc5 {[%emt 0:00:46]} 53. Kc3 {[%emt 0:00:29]} b2 {[%emt 0:00:33]} 54. Kxb2 {[%emt 0:00:12]} Kd4 {[%emt 0:00:01]} 55. Nc2+ {[%emt 0:07:35]} Kd3 {[%emt 0:01:24]} 56. Ne1+ {[%emt 0:01:31]} Ke2 {[%emt 0:00:07]} 57. Nf3 {[%emt 0:00:17]} e4 {[%emt 0:00:27]} 58. Ng5 {[%emt 0:00:24]} Kf2 {[%emt 0:01:35]} 59. Kc2 {[%emt 0:00:47]} h6 {[%emt 0:02:29]} 60. Ne6 {[%emt 0:00:17]} g5 {[%emt 0:00:26]} 61. Nd4 {[%emt 0:00:44]} f4 {[%emt 0:00:25]} 62. Kd1 {[%emt 0:00:31]} Kxg2 {[%emt 0:00:17]} 63. Nf5 {[%emt 0:00:06]} f3 {[%emt 0:00:36]} 64. h4 gxh4 {[%emt 0:00:47]} 65. Ne3+ Kg1 0-1

[Event "32nd Panamerican Youth 2022"]
[Site "Montevideo"]
[Date "2022.06.26"]
[Round "1.31"]
[White "Matus, Nastassja"]
[Black "Yepez Montenegro, Gloria Luz"]
[Result "1-0"]
[ECO "D11"]
[WhiteElo "1908"]
[BlackElo "1490"]
[Annotator "RC"]
[PlyCount "22"]
[EventDate "2022.06.26"]
[EventType "swiss"]
[EventCountry "URU"]
[SourceTitle "playchess.com"]
[Source "ChessBase"]
[SourceQuality "1"]
[TimeControl "5400+30"]

1. d4 {[%emt 0:00:04]} d5 {[%emt 0:00:07]} 2. c4 {[%emt 0:00:05]} c6 {[%emt 0:00:06]} 3. Nf3 {[%emt 0:00:06]} Nf6 {[%emt 0:00:38]} 4. Qc2 {[%emt 0:00:31]} g6 {[%emt 0:01:33]} 5. g3 {[%emt 0:00:38]} Bg7 {[%emt 0:01:57]} 6. Bg2 {[%emt 0:01:23]} dxc4 {[%emt 0:06:00]} 7. Qxc4 {[%emt 0:01:05]} Bf5 8. O-O {[%emt 0:04:20]} Nbd7 {[%emt 0:05:55]} 9. Ng5 {[%emt 0:05:20]} O-O {[%emt 0:02:42]} 10. e4 {[%emt 0:01:55]} Nb6 {[%emt 0:03:16]} 11. Qd3 {[%emt 0:03:46]} Bd7 {[%emt 0:06:38]} 1-0

[Event "32nd Panamerican Youth 2022"]
[Site "Montevideo"]
[Date "2022.06.26"]
[Round "1.32"]
[White "Velasquez Nava, Raquel"]
[Black "Perez Hernandez, Vicmary C."]
[Result "0-1"]
[ECO "D45"]
[WhiteElo "1458"]
[BlackElo "1909"]
[Annotator "RC"]
[PlyCount "117"]
[EventDate "2022.06.26"]
[EventType "swiss"]
[EventCountry "URU"]
[SourceTitle "playchess.com"]
[Source "ChessBase"]
[SourceQuality "1"]
[TimeControl "5400+30"]

1. d4 {[%emt 0:00:17]} d5 {[%emt 0:04:26]} 2. Nf3 {[%emt 0:00:07]} Nf6 {[%emt 0:00:11]} 3. c4 {[%emt 0:00:07]} c6 {[%emt 0:00:15]} 4. Nc3 {[%emt 0:00:26]} e6 {[%emt 0:00:20]} 5. e3 {[%emt 0:01:25]} Nbd7 {[%emt 0:00:10]} 6. Qc2 {[%emt 0:00:09]} b6 {[%emt 0:00:54]} 7. Be2 {[%emt 0:01:50]} Bb7 {[%emt 0:00:08]} 8. O-O {[%emt 0:00:17]} Be7 {[%emt 0:00:16]} 9. b3 {[%emt 0:03:21]} O-O {[%emt 0:02:34]} 10. Bb2 {[%emt 0:00:05]} Rc8 {[%emt 0:00:08]} 11. Rac1 {[%emt 0:00:30]} Qc7 {[%emt 0:01:10]} 12. Rfd1 {[%emt 0:01:54]} Rfd8 {[%emt 0:00:53]} 13. Qb1 {[%emt 0:07:04]} Qb8 {[%emt 0:00:59]} 14. cxd5 {[%emt 0:02:28]} cxd5 {[%emt 0:00:59]} 15. Bd3 {[%emt 0:01:14]} a6 {[%emt 0:01:35]} 16. h3 {[%emt 0:09:42]} b5 {[%emt 0:01:19]} 17. Ne2 {[%emt 0:01:20]} Bd6 {[%emt 0:03:38]} 18. Rxc8 {[%emt 0:09:48]} Rxc8 {[%emt 0:00:07]} 19. Rc1 {[%emt 0:00:05]} Ne4 {[%emt 0:08:55]} 20. Rxc8+ {[%emt 0:13:53]} Qxc8 {[%emt 0:00:19]} 21. Ne5 {[%emt 0:00:05]} f5 {[%emt 0:04:47]} 22. f3 {[%emt 0:04:46]} Nef6 {[%emt 0:00:44]} 23. Nf4 {[%emt 0:00:08]} Qe8 {[%emt 0:04:07]} 24. h4 {[%emt 0:05:10]} Nb6 {[%emt 0:05:22]} 25. Qe1 {[%emt 0:02:44]} Nfd7 {[%emt 0:05:58]} 26. Qa5 {[%emt 0:03:46]} Bc7 {[%emt 0:07:11]} 27. Qb4 {[%emt 0:00:17]} Nxe5 {[%emt 0:03:00]} 28. dxe5 {[%emt 0:00:09]} Nd7 {[%emt 0:00:04]} 29. a4 {[%emt 0:01:53]} Bxe5 {[%emt 0:02:24]} 30. Bxe5 {[%emt 0:03:35]} Nxe5 {[%emt 0:00:04]} 31. Be2 {[%emt 0:00:06]} Bc6 {[%emt 0:06:00]} 32. axb5 {[%emt 0:00:41]} axb5 {[%emt 0:02:14]} 33. Qd6 {[%emt 0:00:06]} Ng6 {[%emt 0:00:54]} 34. Nxe6 {[%emt 0:02:41]} Bd7 {[%emt 0:07:00]} 35. Nd4 {[%emt 0:00:34]} Qxe3+ {[%emt 0:02:04]} 36. Kf1 {[%emt 0:00:05]} Qxd4 {[%emt 0:04:41]} 37. Qxd7 {[%emt 0:00:07]} Qa1+ {[%emt 0:00:05]} 38. Kf2 {[%emt 0:00:15]} Qd4+ {[%emt 0:00:03]} 39. Kf1 {[%emt 0:00:09]} b4 {[%emt 0:01:56]} 40. h5 {[%emt 0:00:53]} Nf8 {[%emt 0:00:41]} 41. Qxf5 {[%emt 0:00:05]} Qa1+ {[%emt 0:01:19]} 42. Kf2 {[%emt 0:00:09]} Qa7+ {[%emt 0:00:03]} 43. Kf1 {[%emt 0:01:01]} Qd7 {[%emt 0:00:50]} 44. Qf4 {[%emt 0:02:10]} Qb7 {[%emt 0:01:10]} 45. Qd6 {[%emt 0:01:03]} Nd7 {[%emt 0:02:18]} 46. Bd3 {[%emt 0:00:25]} Nf6 {[%emt 0:01:35]} 47. Bf5 {[%emt 0:00:58]} Qa8 {[%emt 0:05:07]} 48. Kg1 {[%emt 0:05:48]} Qe8 {[%emt 0:02:12]} 49. Be6+ {[%emt 0:02:21]} Kh8 {[%emt 0:00:09]} 50. Bxd5 {[%emt 0:01:05]} Qe1+ {[%emt 0:01:04]} 51. Kh2 {[%emt 0:00:10]} Qh4+ {[%emt 0:00:02]} 52. Kg1 {[%emt 0:02:15]} Qd4+ {[%emt 0:00:04]} 53. Kf1 {[%emt 0:00:04]} Qxd5 {[%emt 0:00:17]} 54. Qf8+ {[%emt 0:00:07]} Qg8 {[%emt 0:01:31]} 55. Qxb4 {[%emt 0:00:04]} Nxh5 {[%emt 0:01:33]} 56. Qc5 {[%emt 0:02:47]} Nf4 57. b4 {[%emt 0:01:17]} Qd8 {[%emt 0:02:53]} 58. Qc4 {[%emt 0:01:38]} Qd3+ {[%emt 0:00:46]} 59. Qxd3 {[%emt 0:00:10]} 0-1